fUST/lending_fUST_20250708
["ID","MTS","AMOUNT","RATE_DAILY","PERIOD"]
[370351157,1751976640475,-460.0,0.00019178,2]
[370351159,1751976640485,-460.0,0.00019178,2]
[370351162,1751976640499,-460.0,0.00019178,2]
[370351164,1751976640509,-413.49833596,0.00019178,2]
[370351166,1751976640518,-460.0,0.00019178,2]
[370351168,1751976640527,-460.0,0.00019178,2]
[370351170,1751976640537,-460.0,0.00019178,2]
[370351172,1751976640546,-1149.07,0.00019178,2]
[370351174,1751976640556,-460.0,0.00019178,2]
[370351176,1751976640566,-460.0,0.00019178,2]
[370351178,1751976640575,-460.0,0.00019178,2]
[370351180,1751976640584,-460.0,0.00019178,2]
[370351182,1751976640594,-737.57,0.00019178,2]
[370351184,1751976640603,-609.64,0.00019178,2]
[370351186,1751976640613,-460.0,0.00019178,2]
[370351188,1751976640622,-151.0,0.00019178,2]
[370351190,1751976640632,-151.0,0.00019178,2]
[370351192,1751976640642,-151.0,0.00019178,2]
[370351194,1751976640651,-151.0,0.00019178,2]
[370351196,1751976640661,-460.81455417,0.00019178,2]
[370351198,1751976640670,-460.0,0.00019178,2]
[370351200,1751976640680,-460.0,0.00019178,2]
[370351202,1751976640689,-460.0,0.00019178,2]
[370351204,1751976640698,-460.0,0.00019178,2]
[370351206,1751976640708,-460.0,0.00019178,2]
[370351208,1751976640717,-462.30642249,0.00019178,2]
[370351210,1751976640727,-405.01144267,0.00019178,2]
[370351212,1751976640736,-460.0,0.00019178,2]
[370351214,1751976640745,-460.0,0.00019178,2]
[370351216,1751976640754,-460.0,0.00019178,2]
[370351218,1751976640763,-460.0,0.00019178,2]
[370351220,1751976640773,-460.0,0.00019178,2]
[370351222,1751976640782,-460.0,0.00019178,2]
[370351224,1751976640791,-460.0,0.00019178,2]
[370351226,1751976640800,-460.0,0.00019178,2]
[370351228,1751976640809,-169.63768872,0.00019178,2]
[370351230,1751976640819,-472.98111678,0.00019178,2]
[370351232,1751976640828,-460.0,0.00019178,2]
[370351234,1751976640837,-460.0,0.00019178,2]
[370351236,1751976640848,-460.0,0.00019178,2]
[370351238,1751976640858,-301.59441903,0.00019178,2]
[370351240,1751976640868,-460.0,0.00019178,2]
[370351242,1751976640877,-460.0,0.00019178,2]
[370351244,1751976640887,-1091.11,0.00019178,2]
[370351246,1751976640896,-1149.99,0.00019178,2]
[370351248,1751976640905,-510.35251212,0.00019178,2]
[370351250,1751976640915,-151.0,0.00019178,2]
[370351252,1751976640924,-151.0,0.00019178,2]
[370351254,1751976640934,-460.0,0.00019178,2]
[370351256,1751976640944,-151.0,0.00019178,2]
[370351258,1751976640953,-151.0,0.00019178,2]
[370351260,1751976640963,-546.77,0.00019178,2]
[370351262,1751976640972,-188.884528,0.00019178,2]
[370351264,1751976640981,-188.359746,0.00019178,2]
[370351266,1751976640991,-460.0,0.00019178,2]
[370351268,1751976641000,-502.42619323,0.00019178,2]
[370351270,1751976641010,-460.0,0.00019178,2]
[370351283,1751976641122,-460.0,0.00019178,2]
[370351285,1751976641132,-460.0,0.00019178,2]
[370351287,1751976641142,-460.0,0.00019178,2]
[370351289,1751976641151,-997.08,0.00019178,2]
[370351292,1751976641161,-460.0,0.00019178,2]
[370351293,1751976641170,-151.0,0.00019178,2]
[370351295,1751976641179,-460.0,0.00019178,2]
[370351297,1751976641189,-151.0,0.00019178,2]
[370351299,1751976641198,-460.0,0.00019178,2]
[370351301,1751976641208,-460.0,0.00019178,2]
[370351304,1751976641221,-460.0,0.00019178,2]
[370351305,1751976641230,-460.0,0.00019178,2]
[370351307,1751976641240,-460.0,0.00019178,2]
[370351310,1751976641253,-460.0,0.00019178,2]
[370351312,1751976641263,-460.0,0.00019178,2]
[370351314,1751976641272,-447.13246169,0.00019178,2]
[370351315,1751976641281,-460.0,0.00019178,2]
[370351317,1751976641294,-460.0,0.00019178,2]
[370351319,1751976641303,-460.0,0.00019178,2]
[370351321,1751976641312,-460.0,0.00019178,2]
[370351323,1751976641322,-460.0,0.00019178,2]
[370351325,1751976641331,-5.10480806,0.00019178,2]
[370351342,1751976641481,-145.89519194,0.00019178,2]
[370351344,1751976641491,-151.0,0.00019178,2]
[370351346,1751976641500,-460.0,0.00019178,2]
[370351348,1751976641509,-460.0,0.00019178,2]
[370351350,1751976641519,-214.467524,0.00019178,2]
[370351353,1751976641529,-460.0,0.00019178,2]
[370351355,1751976641538,-460.0,0.00019178,2]
[370351356,1751976641547,-460.0,0.00019178,2]
[370351358,1751976641557,-460.0,0.00019178,2]
[370351360,1751976641566,-460.0,0.00019178,2]
[370351361,1751976641575,-460.0,0.00019178,2]
[370351363,1751976641584,-460.0,0.00019178,2]
[370351364,1751976641594,-513.00595829,0.00019178,2]
[370351366,1751976641603,-460.0,0.00019178,2]
[370351367,1751976641612,-460.0,0.00019178,2]
[370351369,1751976641622,-460.0,0.00019178,2]
[370351370,1751976641631,-462.69897738,0.00019178,2]
[370351372,1751976641640,-463.82084155,0.00019178,2]
[370351374,1751976641649,-460.0,0.00019178,2]
[370351375,1751976641659,-460.0,0.00019178,2]
[370351377,1751976641668,-460.0,0.00019178,2]
[370351378,1751976641677,-460.0,0.00019178,2]
[370351380,1751976641687,-460.0,0.00019178,2]
[370351381,1751976641697,-460.0,0.00019178,2]
[370351383,1751976641706,-460.0,0.00019178,2]
[370351384,1751976641715,-151.0,0.00019178,2]
[370351386,1751976641725,-151.0,0.00019178,2]
[370351387,1751976641734,-151.0,0.00019178,2]
[370351389,1751976641744,-151.0,0.00019178,2]
[370351391,1751976641753,-465.95250951,0.00019178,2]
[370351392,1751976641762,-460.0,0.00019178,2]
[370351394,1751976641771,-460.0,0.00019178,2]
[370351395,1751976641780,-428.07681001,0.00019178,2]
[370351550,1751976644038,-31.92318999,0.00019178,2]
[370351551,1751976644048,-460.0,0.00019178,2]
[370351553,1751976644057,-460.0,0.00019178,2]
[370351554,1751976644067,-2154.27614081,0.00019178,2]
[370351557,1751976644086,-460.0,0.00019178,2]
[370351559,1751976644097,-460.0,0.00019178,2]
[370351561,1751976644106,-151.0,0.00019178,2]
[370351564,1751976644124,-575.02795028,0.00019178,2]
[370351567,1751976644147,-460.0,0.00019178,2]
[370351570,1751976644166,-460.0,0.00019178,2]
[370351573,1751976644185,-151.28600357,0.00019178,2]
[370351577,1751976644205,-151.25282475,0.00019178,2]
[370351580,1751976644225,-151.0,0.00019178,2]
[370351583,1751976644247,-151.0,0.00019178,2]
[370351586,1751976644266,-266.99792838,0.00019178,2]
[370351590,1751976644292,-193.00207162,0.00019178,2]
[370351592,1751976644309,-151.0,0.00019178,2]
[370351595,1751976644323,-151.0,0.00019178,2]
[370351597,1751976644338,-460.0,0.00019178,2]
[370351600,1751976644355,-460.0,0.00019178,2]
[370351603,1751976644373,-460.0,0.00019178,2]
[370351606,1751976644392,-460.0,0.00019178,2]
[370351609,1751976644407,-328.90964994,0.00019178,2]
[370351611,1751976644419,-460.0,0.00019178,2]
[370351614,1751976644439,-460.0,0.00019178,2]
[370351617,1751976644453,-460.0,0.00019178,2]
[370351619,1751976644468,-460.0,0.00019178,2]
[370351622,1751976644483,-460.0,0.00019178,2]
[370351625,1751976644495,-460.0,0.00019178,2]
[370351627,1751976644514,-1251.63,0.00019178,2]
[370351630,1751976644531,-460.0,0.00019178,2]
[370351633,1751976644545,-816.84,0.00019178,2]
[370351635,1751976644559,-460.0,0.00019178,2]
[370351638,1751976644574,-460.0,0.00019178,2]
[370351640,1751976644589,-209.42710569,0.00019178,2]
[370351645,1751976644621,-250.57289431,0.00019178,2]
[370351647,1751976644635,-460.0,0.00019178,2]
[370351650,1751976644650,-460.0,0.00019178,2]
[370351653,1751976644663,-58.77791869,0.00019178,2]
[370351873,1751976646734,-0.02205689,0.00019178,2]
[370351884,1751976646830,-401.20002442,0.00019178,2]
[370351886,1751976646839,-867.91,0.00019178,2]
[370351888,1751976646848,-460.0,0.00019178,2]
[370351890,1751976646858,-463.29659038,0.00019178,2]
[370351892,1751976646867,-2854.31402631,0.00019178,2]
[370351894,1751976646880,-4339.89597369,0.00019178,2]
[370351896,1751976646889,-151.0,0.00019178,2]
[370351898,1751976646898,-151.0,0.00019178,2]
[370351900,1751976646908,-460.0,0.00019178,2]
[370351902,1751976646917,-186.28122798,0.00019178,2]
[370351904,1751976646927,-460.0,0.00019178,2]
[370351906,1751976646936,-460.0,0.00019178,2]
[370351908,1751976646945,-460.0,0.00019178,2]
[370351910,1751976646954,-1053.57,0.00019178,2]
[370351912,1751976646964,-460.0,0.00019178,2]
[370351914,1751976646973,-545.52507295,0.00019178,2]
[370351916,1751976646982,-460.0,0.00019178,2]
[370351918,1751976646991,-460.0,0.00019178,2]
[370351920,1751976647000,-460.0,0.00019178,2]
[370351922,1751976647010,-460.0,0.00019178,2]
[370351924,1751976647019,-500.0,0.00019178,2]
[370351926,1751976647028,-289.46540969,0.00019178,2]
[370351928,1751976647037,-460.0,0.00019178,2]
[370351930,1751976647047,-942.3,0.00019178,2]
[370351932,1751976647056,-4193.38,0.00019178,2]
[370351934,1751976647065,-5401.98,0.00019178,2]
[370351936,1751976647075,-460.0,0.00019178,2]
[370351938,1751976647084,-460.0,0.00019178,2]
[370351939,1751976647093,-500.0,0.00019178,2]
[370351940,1751976647103,-500.0,0.00019178,2]
[370351941,1751976647113,-500.0,0.00019178,2]
[370351942,1751976647123,-500.0,0.00019178,2]
[370351943,1751976647133,-500.0,0.00019178,2]
[370351944,1751976647142,-500.0,0.00019178,2]
[370351945,1751976647152,-500.0,0.00019178,2]
[370351946,1751976647162,-1998.98,0.00019178,2]
[370351947,1751976647171,-542.62851241,0.00019178,2]
[370351948,1751976647181,-723.95544542,0.00019178,2]
[370351949,1751976647194,-381.92818453,0.00019178,2]
[370353035,1751976912410,349.42,0.00027397,120]
[370353036,1751976919978,158.27145,0.00013699,2]
[370353044,1751977070627,1444.0,0.00026137,120]
[370353049,1751977125781,-286.0,0.00018125,2]
[370353050,1751977150823,-500.0,0.00018125,2]
[370353051,1751977153484,-268.61357366,0.00018125,2]
[370353052,1751977155830,-187.5264728,0.00018125,2]
[370353053,1751977156643,1000.0,0.00027,120]
[370353054,1751977157528,-300.0,0.00018125,2]
[370353055,1751977162858,-195.26449688,0.00018125,2]
[370353056,1751977165916,-209.15682302,0.00018125,2]
[370353057,1751977168107,-187.446289,0.00018125,2]
[370353061,1751977188080,-2848.38608814,0.00018125,2]
[370353062,1751977188102,-166.0,0.00018203,2]
[370353063,1751977188124,-160.0,0.00018779,3]
[370353064,1751977188145,-679.420515,0.00018794,2]
[370353065,1751977188166,-294.0,0.00018888,2]
[370353066,1751977188187,-150.0,0.000189,2]
[370353067,1751977188212,-1497.77418826,0.00019077,2]
[370353068,1751977188233,-186.51018781,0.00019078,2]
[370353069,1751977188254,-246.97074584,0.00019078,2]
[370353070,1751977188278,-246.97074581,0.00019147,2]
[370353071,1751977188299,-207.4,0.00019166,2]
[370353072,1751977188320,-300.0,0.00019176,2]
[370353073,1751977188340,-22715.56752914,0.00019177,2]
[370353075,1751977210510,150.0,0.00027397,120]
[370353086,1751977397863,4744.56773551,0.0001812,2]
[370353087,1751977448178,153.27316457,0.0001812,2]
[370353088,1751977458178,10406.46312514,0.00027397,120]
[370353092,1751977606314,151.36108808,0.00025262,60]
[370353093,1751977615086,-151.585696,0.00018415,2]
[370353094,1751977615108,-1.68739463,0.00018794,2]
[370353096,1751977692873,-196.74389267,0.00018137,2]
[370353097,1751977696443,-350.59066994,0.00018137,2]
[370353098,1751977699811,-243.90233004,0.00018137,2]
[370353099,1751977703193,-160.03342104,0.00018137,2]
[370353100,1751977705966,-453.9095177,0.00018137,2]
[370353101,1751977710474,-337.59078219,0.00018137,2]
[370353102,1751977713844,-276.99331779,0.00018137,2]
[370353103,1751977716020,-259.03584423,0.00018137,2]
[370353104,1751977716647,-9944.8470312,0.00018137,2]
[370353105,1751977718168,211.1529688,0.00018115,2]
[370353106,1751977718195,1180.7146401,0.00018115,2]
[370353108,1751977726349,164.7928162,0.0002,120]
[370353133,1751977832358,-582.119385,0.00018794,2]
[370353135,1751977832367,-250.60326963,0.0001891,2]
[370353136,1751977832377,-191.08283017,0.00018973,2]
[370353137,1751977832386,-1652.57990267,0.0001901,2]
[370353138,1751977832398,-642.96252598,0.0001901,2]
[370353174,1751977838161,-738.45757135,0.0001901,2]
[370353176,1751977838170,-54.53694454,0.00019073,2]
[370353178,1751977838183,-1163.84060701,0.00019073,2]
[370353180,1751977838194,-443.4503946,0.00019073,2]
[370353182,1751977838204,-296.0,0.00019076,2]
[370353184,1751977838214,-300.0,0.00019076,2]
[370353186,1751977838223,-1200.0,0.00019076,2]
[370353188,1751977838232,-295.0,0.00019077,2]
[370353190,1751977838241,-313.29791088,0.00019078,2]
[370353192,1751977838251,-178.20677924,0.00019078,2]
[370353194,1751977838260,-7193.78,0.00019078,2]
[370353196,1751977838270,-1335.67651939,0.00019078,2]
[370353198,1751977838279,-178.20677924,0.00019117,2]
[370353201,1751977838288,-178.20677924,0.00019156,2]
[370353203,1751977838298,-207.4,0.00019161,2]
[370353205,1751977838307,-500.0,0.00019166,2]
[370353207,1751977838316,-500.0,0.00019166,2]
[370353209,1751977838326,-383.4325983,0.00019166,2]
[370353211,1751977838337,-116.5674017,0.00019166,2]
[370353213,1751977838346,-500.0,0.00019166,2]
[370353215,1751977838356,-500.0,0.00019166,2]
[370353217,1751977838365,-500.0,0.00019166,2]
[370353219,1751977838375,-500.0,0.00019166,2]
[370353221,1751977838384,-500.0,0.00019166,2]
[370353223,1751977838393,-500.0,0.00019166,2]
[370353225,1751977838403,-500.0,0.00019166,2]
[370353227,1751977838412,-500.0,0.00019166,2]
[370353229,1751977838421,-731.65,0.00019168,3]
[370353231,1751977838431,-547.33,0.00019168,3]
[370353233,1751977838440,-318.41,0.00019168,3]
[370353235,1751977838451,-610.90694619,0.00019173,2]
[370353237,1751977838461,-500.0,0.00019173,2]
[370353239,1751977838470,-501.04864032,0.00019173,2]
[370353241,1751977838480,-185.55244099,0.00019177,2]
[370353243,1751977838490,-177.3018309,0.00019177,2]
[370353245,1751977838499,-500.0,0.00019177,2]
[370353247,1751977838509,-500.0,0.00019177,2]
[370353249,1751977838519,-319.33893694,0.00019178,2]
[370353251,1751977838528,-460.0,0.00019178,2]
[370353253,1751977838538,-460.0,0.00019178,2]
[370353255,1751977838547,-460.0,0.00019178,2]
[370353257,1751977838557,-506.80617716,0.00019178,2]
[370353259,1751977838566,-462.16125666,0.00019178,2]
[370353261,1751977838576,-460.0,0.00019178,2]
[370353263,1751977838584,-526.94443348,0.00019178,2]
[370353265,1751977838594,-151.0,0.00019178,2]
[370353267,1751977838603,-151.0,0.00019178,2]
[370353269,1751977838613,-151.0,0.00019178,2]
[370353271,1751977838622,-460.0,0.00019178,2]
[370353273,1751977838631,-460.0,0.00019178,2]
[370353275,1751977838641,-460.0,0.00019178,2]
[370353277,1751977838651,-460.0,0.00019178,2]
[370353280,1751977838661,-953.664224,0.00019178,2]
[370353281,1751977838670,-564.19736,0.00019178,2]
[370353284,1751977838680,-564.19736,0.00019178,2]
[370353286,1751977838689,-151.0,0.00019178,2]
[370353288,1751977838698,-151.0,0.00019178,2]
[370353290,1751977838708,-564.19736,0.00019178,2]
[370353292,1751977838718,-564.19736,0.00019178,2]
[370353293,1751977838728,-460.0,0.00019178,2]
[370353296,1751977838738,-151.0,0.00019178,2]
[370353297,1751977838747,-151.0,0.00019178,2]
[370353300,1751977838757,-280.515216,0.00019178,2]
[370353301,1751977838767,-280.515216,0.00019178,2]
[370353304,1751977838777,-151.950016,0.00019178,2]
[370353305,1751977838786,-460.0,0.00019178,2]
[370353307,1751977838796,-460.0,0.00019178,2]
[370353310,1751977838807,-460.0,0.00019178,2]
[370353312,1751977838816,-460.0,0.00019178,2]
[370353314,1751977838826,-460.0,0.00019178,2]
[370353316,1751977838835,-460.0,0.00019178,2]
[370353318,1751977838845,-460.0,0.00019178,2]
[370353320,1751977838854,-2154.27614081,0.00019178,2]
[370353322,1751977838864,-460.0,0.00019178,2]
[370353324,1751977838873,-460.0,0.00019178,2]
[370353326,1751977838883,-460.0,0.00019178,2]
[370353328,1751977838893,-460.0,0.00019178,2]
[370353330,1751977838902,-460.0,0.00019178,2]
[370353332,1751977838911,-460.0,0.00019178,2]
[370353334,1751977838921,-460.0,0.00019178,2]
[370353336,1751977838930,-151.0,0.00019178,2]
[370353338,1751977838939,-151.0,0.00019178,2]
[370353340,1751977838949,-151.0,0.00019178,2]
[370353342,1751977838958,-151.0,0.00019178,2]
[370353344,1751977838967,-460.0,0.00019178,2]
[370353346,1751977838977,-460.0,0.00019178,2]
[370353348,1751977838987,-171.10283699,0.00019178,2]
[370353350,1751977838996,-460.0,0.00019178,2]
[370353352,1751977839005,-460.0,0.00019178,2]
[370353354,1751977839015,-460.0,0.00019178,2]
[370353356,1751977839028,-460.0,0.00019178,2]
[370353358,1751977839039,-460.0,0.00019178,2]
[370353360,1751977839049,-460.0,0.00019178,2]
[370353362,1751977839059,-460.0,0.00019178,2]
[370353364,1751977839072,-500.0,0.00019178,2]
[370353366,1751977839082,-500.0,0.00019178,2]
[370353368,1751977839091,-505.79646624,0.00019178,2]
[370353370,1751977839102,-460.0,0.00019178,2]
[370353372,1751977839112,-151.0,0.00019178,2]
[370353374,1751977839121,-151.0,0.00019178,2]
[370353376,1751977839131,-151.0,0.00019178,2]
[370353378,1751977839141,-460.0,0.00019178,2]
[370353380,1751977839151,-460.0,0.00019178,2]
[370353382,1751977839161,-151.0,0.00019178,2]
[370353384,1751977839170,-151.0,0.00019178,2]
[370353386,1751977839180,-151.0,0.00019178,2]
[370353388,1751977839190,-460.0,0.00019178,2]
[370353390,1751977839200,-460.54083033,0.00019178,2]
[370353393,1751977839210,-460.0,0.00019178,2]
[370353395,1751977839219,-460.0,0.00019178,2]
[370353397,1751977839228,-151.0,0.00019178,2]
[370353399,1751977839238,-151.0,0.00019178,2]
[370353401,1751977839247,-155.542238,0.00019178,2]
[370353403,1751977839256,-511.85450376,0.00019178,2]
[370353405,1751977839266,-460.0,0.00019178,2]
[370353407,1751977839275,-460.0,0.00019178,2]
[370353409,1751977839284,-264.544003,0.00019178,2]
[370353411,1751977839293,-264.544003,0.00019178,2]
[370353412,1751977839302,-460.0,0.00019178,2]
[370353415,1751977839312,-264.544003,0.00019178,2]
[370353416,1751977839320,-264.544003,0.00019178,2]
[370353419,1751977839330,-381.04844604,0.00019178,2]
[370353420,1751977839339,-151.0,0.00019178,2]
[370353423,1751977839349,-151.0,0.00019178,2]
[370353425,1751977839358,-151.0,0.00019178,2]
[370353426,1751977839368,-151.0,0.00019178,2]
[370353428,1751977839377,-460.0,0.00019178,2]
[370353430,1751977839387,-596.24783442,0.00019178,2]
[370353433,1751977839396,-460.0,0.00019178,2]
[370353435,1751977839405,-460.0,0.00019178,2]
[370353437,1751977839415,-460.0,0.00019178,2]
[370353439,1751977839424,-460.0,0.00019178,2]
[370353441,1751977839433,-460.0,0.00019178,2]
[370353443,1751977839443,-241.07905106,0.00019178,2]
[370353445,1751977839453,-460.0,0.00019178,2]
[370353447,1751977839463,-460.0,0.00019178,2]
[370353449,1751977839473,-460.0,0.00019178,2]
[370353451,1751977839482,-460.0,0.00019178,2]
[370353453,1751977839491,-151.0,0.00019178,2]
[370353455,1751977839501,-151.0,0.00019178,2]
[370353457,1751977839510,-460.0,0.00019178,2]
[370353459,1751977839520,-706.84,0.00019178,2]
[370353461,1751977839529,-151.0,0.00019178,2]
[370353463,1751977839538,-151.0,0.00019178,2]
[370353465,1751977839548,-460.0,0.00019178,2]
[370353467,1751977839557,-460.0,0.00019178,2]
[370353469,1751977839568,-460.0,0.00019178,2]
[370353471,1751977839577,-433.66762173,0.00019178,2]
[370353473,1751977839587,-460.0,0.00019178,2]
[370353475,1751977839597,-460.0,0.00019178,2]
[370353477,1751977839607,-460.0,0.00019178,2]
[370353479,1751977839616,-460.0,0.00019178,2]
[370353481,1751977839627,-460.0,0.00019178,2]
[370353484,1751977839636,-460.0,0.00019178,2]
[370353486,1751977839646,-151.0,0.00019178,2]
[370353488,1751977839656,-151.0,0.00019178,2]
[370353490,1751977839666,-151.0,0.00019178,2]
[370353492,1751977839675,-151.0,0.00019178,2]
[370353494,1751977839684,-151.0,0.00019178,2]
[370353496,1751977839694,-683.72693661,0.00019178,2]
[370353498,1751977839704,-460.0,0.00019178,2]
[370353500,1751977839714,-460.0,0.00019178,2]
[370353502,1751977839723,-322.01731,0.00019178,2]
[370353504,1751977839732,-322.01731,0.00019178,2]
[370353506,1751977839741,-322.01731,0.00019178,2]
[370353508,1751977839751,-322.01731,0.00019178,2]
[370353524,1751977839886,-322.01731,0.00019178,2]
[370353526,1751977839896,-460.0,0.00019178,2]
[370353528,1751977839905,-322.01731,0.00019178,2]
[370353530,1751977839915,-322.01731,0.00019178,2]
[370353532,1751977839924,-322.01731,0.00019178,2]
[370353534,1751977839933,-460.0,0.00019178,2]
[370353536,1751977839943,-667.174918,0.00019178,2]
[370353538,1751977839954,-667.174918,0.00019178,2]
[370353540,1751977839963,-482.13369802,0.00019178,2]
[370353543,1751977839982,-185.04121998,0.00019178,2]
[370353545,1751977839992,-667.174918,0.00019178,2]
[370353547,1751977840001,-346.059357,0.00019178,2]
[370353549,1751977840010,-346.059357,0.00019178,2]
[370353550,1751977840021,-667.174918,0.00019178,2]
[370353552,1751977840032,-667.174918,0.00019178,2]
[370353554,1751977840042,-460.0,0.00019178,2]
[370353556,1751977840051,-346.059357,0.00019178,2]
[370353558,1751977840060,-346.059357,0.00019178,2]
[370353560,1751977840070,-460.0,0.00019178,2]
[370353562,1751977840079,-460.0,0.00019178,2]
[370353564,1751977840089,-151.0,0.00019178,2]
[370353566,1751977840098,-460.0,0.00019178,2]
[370353568,1751977840108,-460.0,0.00019178,2]
[370353570,1751977840117,-460.0,0.00019178,2]
[370353572,1751977840127,-460.0,0.00019178,2]
[370353574,1751977840136,-460.0,0.00019178,2]
[370353576,1751977840145,-151.0,0.00019178,2]
[370353578,1751977840154,-151.0,0.00019178,2]
[370353580,1751977840164,-192.664376,0.00019178,2]
[370353582,1751977840173,-179.31423762,0.00019178,2]
[370353585,1751977840195,-280.68576238,0.00019178,2]
[370353587,1751977840204,-250.225182,0.00019178,2]
[370353589,1751977840214,-460.0,0.00019178,2]
[370353591,1751977840223,-460.0,0.00019178,2]
[370353593,1751977840233,-460.0,0.00019178,2]
[370353595,1751977840242,-460.0,0.00019178,2]
[370353597,1751977840251,-364.84638788,0.00019178,2]
[370353599,1751977840260,-460.0,0.00019178,2]
[370353601,1751977840269,-460.0,0.00019178,2]
[370353603,1751977840279,-460.0,0.00019178,2]
[370353605,1751977840289,-460.0,0.00019178,2]
[370353607,1751977840298,-460.0,0.00019178,2]
[370353609,1751977840308,-460.0,0.00019178,2]
[370353611,1751977840317,-153.95192536,0.00019178,2]
[370353632,1751977840516,-1105.54459164,0.00019178,2]
[370353634,1751977840526,-1259.496517,0.00019178,2]
[370353635,1751977840535,-151.0,0.00019178,2]
[370353637,1751977840544,-1259.496517,0.00019178,2]
[370353639,1751977840553,-151.0,0.00019178,2]
[370353641,1751977840563,-1259.496517,0.00019178,2]
[370353643,1751977840574,-822.68,0.00019178,2]
[370353645,1751977840583,-727.75,0.00019178,2]
[370353647,1751977840592,-460.0,0.00019178,2]
[370353649,1751977840601,-388.36420923,0.00019178,2]
[370353651,1751977840613,-552.36930856,0.00019178,2]
[370353654,1751977840625,-46.75648221,0.00019178,2]
[370353655,1751977840634,-151.0,0.00019178,2]
[370353657,1751977840644,-151.0,0.00019178,2]
[370353660,1751977840654,-151.0,0.00019178,2]
[370353661,1751977840663,-151.0,0.00019178,2]
[370353663,1751977840674,-151.0,0.00019178,2]
[370353665,1751977840684,-151.0,0.00019178,2]
[370353667,1751977840693,-151.0,0.00019178,2]
[370353669,1751977840704,-410.88321512,0.00019178,2]
[370353671,1751977840713,-31.32270346,0.00019178,2]
[370353674,1751977840724,-342.0430293,0.00019178,2]
[370353676,1751977840733,-473.47,0.00019178,2]
[370353677,1751977840743,-460.0,0.00019178,2]
[370353679,1751977840752,-86.03078932,0.00019178,2]
[370353682,1751977840764,-373.96921068,0.00019178,2]
[370353683,1751977840773,-460.0,0.00019178,2]
[370353685,1751977840782,-151.0,0.00019178,2]
[370353687,1751977840792,-460.0,0.00019178,2]
[370353689,1751977840802,-151.0,0.00019178,2]
[370353691,1751977840811,-151.0,0.00019178,2]
[370353693,1751977840821,-234.52926,0.00019178,2]
[370353695,1751977840830,-460.0,0.00019178,2]
[370353697,1751977840840,-151.0,0.00019178,2]
[370353699,1751977840849,-151.0,0.00019178,2]
[370353701,1751977840858,-460.0,0.00019178,2]
[370353703,1751977840867,-460.0,0.00019178,2]
[370353705,1751977840877,-460.0,0.00019178,2]
[370353707,1751977840888,-460.0,0.00019178,2]
[370353709,1751977840897,-470.43783862,0.00019178,2]
[370353711,1751977840907,-460.0,0.00019178,2]
[370353713,1751977840917,-460.0,0.00019178,2]
[370353715,1751977840926,-378.54072738,0.00019178,2]
[370353717,1751977840935,-460.0,0.00019178,2]
[370353719,1751977840945,-460.0,0.00019178,2]
[370353721,1751977840954,-460.0,0.00019178,2]
[370353723,1751977840963,-460.0,0.00019178,2]
[370353724,1751977840972,-460.0,0.00019178,2]
[370353726,1751977840982,-460.0,0.00019178,2]
[370353728,1751977840991,-460.0,0.00019178,2]